[Event "Titled Tuesday Blitz January 10 Early 2023"]
[White "Korchmar, Vasiliy"]
[Black "Jiganchine, Roman"]
[WhiteFideId "24131750"]
[BlackFideId "2603667"]
[WhiteElo "2438"]
[BlackElo "2205"]
[Result "1-0"]
[Round "05"]
[TimeControl "180+2"]
[Date "2023.01.10"]
[WhiteClock "0:01:58"]
[BlackClock "0:01:14"]

1. e4 {[%clk 0:03:00]}  c6 {[%clk 0:02:58]} 2. d4 {[%clk 0:02:59]}  d5 {[%clk 0:02:55]} 3. e5 {[%clk 0:02:59]}  Bf5 {[%clk 0:02:54]} 4. c4 {[%clk 0:03:00]}  e6 {[%clk 0:02:44]} 5. Nc3 {[%clk 0:02:58]}  Nd7 {[%clk 0:02:41]} 6. cxd5 {[%clk 0:02:57]}  cxd5 {[%clk 0:02:40]} 7. h4 {[%clk 0:02:57]}  h5 {[%clk 0:02:33]} 8. Bd3 {[%clk 0:02:56]}  Bxd3 {[%clk 0:02:27]} 9. Qxd3 {[%clk 0:02:57]}  Ne7 {[%clk 0:02:27]} 10. Nf3 {[%clk 0:02:46]}  Qb6 {[%clk 0:02:22]} 11. O-O {[%clk 0:02:41]}  Qa6 {[%clk 0:02:22]} 12. Nb5 {[%clk 0:02:36]}  Qb6 {[%clk 0:01:39]} 13. Nd6+ {[%clk 0:02:34]}  Kd8 {[%clk 0:01:39]} 14. Nxf7+ {[%clk 0:02:34]}  Ke8 {[%clk 0:01:39]} 15. Nxh8 {[%clk 0:02:35]}  Nf5 {[%clk 0:01:39]} 16. Ng6 {[%clk 0:02:31]}  Bb4 {[%clk 0:01:38]} 17. a3 {[%clk 0:02:31]}  Kf7 {[%clk 0:01:34]} 18. axb4 {[%clk 0:02:27]}  Kxg6 {[%clk 0:01:33]} 19. b5 {[%clk 0:02:27]}  Rf8 {[%clk 0:01:33]} 20. Bg5 {[%clk 0:02:26]}  Kh7 {[%clk 0:01:28]} 21. Ra4 {[%clk 0:02:25]}  g6 {[%clk 0:01:27]} 22. Rfa1 {[%clk 0:02:25]}  Rc8 {[%clk 0:01:23]} 23. Rxa7 {[%clk 0:02:25]}  Rc4 {[%clk 0:01:23]} 24. Ra8 {[%clk 0:02:17]}  Qxb5 {[%clk 0:01:21]} 25. Qa3 {[%clk 0:02:11]}  Rb4 {[%clk 0:01:19]} 26. Rd8 {[%clk 0:02:03]}  Nb6 {[%clk 0:01:19]} 27. Qa7 {[%clk 0:02:01]}  Nc4 {[%clk 0:01:15]} 28. Bf6 {[%clk 0:01:59]}  g5 {[%clk 0:01:14]} 29. Nxg5+ {[%clk 0:01:58]} 1-0


[Site "https://www.chess.com"]

[Event "Titled Tuesday Blitz January 10 Early 2023"]
[White "marik_spb"]
[Black "Khumalo, Keith"]
[BlackFideId "14319470"]
[WhiteElo "2432"]
[BlackElo "2099"]
[Result "0-1"]
[Round "05"]
[TimeControl "180+2"]
[Date "2023.01.10"]
[WhiteClock "0:00:02"]
[BlackClock "0:00:49"]

1. d4 {[%clk 0:02:59]}  Nf6 {[%clk 0:03:00]} 2. c4 {[%clk 0:02:59]}  g6 {[%clk 0:03:00]} 3. Nc3 {[%clk 0:02:58]}  Bg7 {[%clk 0:03:01]} 4. e4 {[%clk 0:02:56]}  d6 {[%clk 0:03:01]} 5. Nf3 {[%clk 0:02:47]}  O-O {[%clk 0:03:01]} 6. Be2 {[%clk 0:02:46]}  Na6 {[%clk 0:03:02]} 7. O-O {[%clk 0:02:45]}  e5 {[%clk 0:03:02]} 8. h3 {[%clk 0:02:39]}  Re8 {[%clk 0:03:01]} 9. d5 {[%clk 0:02:37]}  Nc5 {[%clk 0:03:01]} 10. Qc2 {[%clk 0:02:36]}  a5 {[%clk 0:03:01]} 11. Be3 {[%clk 0:02:30]}  Rf8 {[%clk 0:02:08]} 12. Bxc5 {[%clk 0:02:24]}  dxc5 {[%clk 0:02:08]} 13. Nxe5 {[%clk 0:02:25]}  Nxd5 {[%clk 0:02:06]} 14. Nxf7 {[%clk 0:02:02]}  Nb4 {[%clk 0:01:57]} 15. Nxd8 {[%clk 0:01:30]}  Nxc2 {[%clk 0:01:56]} 16. Rad1 {[%clk 0:01:26]}  Nd4 {[%clk 0:01:56]} 17. Bd3 {[%clk 0:01:07]}  Rxd8 {[%clk 0:01:55]} 18. Nd5 {[%clk 0:01:08]}  c6 {[%clk 0:01:52]} 19. Nb6 {[%clk 0:01:04]}  Rb8 {[%clk 0:01:46]} 20. f4 {[%clk 0:00:59]}  Re8 {[%clk 0:01:41]} 21. b3 {[%clk 0:00:54]}  Be6 {[%clk 0:01:33]} 22. f5 {[%clk 0:00:43]}  Bf7 {[%clk 0:01:32]} 23. Nd7 {[%clk 0:00:38]}  Rbd8 {[%clk 0:01:28]} 24. Nxc5 {[%clk 0:00:37]}  b6 {[%clk 0:01:21]} 25. Na4 {[%clk 0:00:34]}  Bf8 {[%clk 0:01:13]} 26. Kh2 {[%clk 0:00:30]}  Bd6+ {[%clk 0:01:13]} 27. Kh1 {[%clk 0:00:30]}  Bc7 {[%clk 0:01:13]} 28. Bb1 {[%clk 0:00:25]}  Ne2 {[%clk 0:01:09]} 29. Rfe1 {[%clk 0:00:21]}  gxf5 {[%clk 0:01:04]} 30. Rxd8 {[%clk 0:00:20]}  Ng3+ {[%clk 0:01:03]} 31. Kg1 {[%clk 0:00:19]}  Bxd8 {[%clk 0:01:03]} 32. Nc3 {[%clk 0:00:16]}  Bf6 {[%clk 0:01:01]} 33. Na4 {[%clk 0:00:11]}  Nxe4 {[%clk 0:00:59]} 34. g4 {[%clk 0:00:11]}  b5 {[%clk 0:00:58]} 35. gxf5 {[%clk 0:00:09]}  Bd4+ {[%clk 0:00:57]} 36. Kg2 {[%clk 0:00:09]}  bxa4 {[%clk 0:00:55]} 37. Rxe4 {[%clk 0:00:09]}  Rxe4 {[%clk 0:00:52]} 38. Bxe4 {[%clk 0:00:09]}  c5 {[%clk 0:00:53]} 39. Kf3 {[%clk 0:00:06]}  axb3 {[%clk 0:00:53]} 40. axb3 {[%clk 0:00:06]}  Kg7 {[%clk 0:00:52]} 41. Bd5 {[%clk 0:00:03]}  Kf6 {[%clk 0:00:51]} 42. Ke4 {[%clk 0:00:02]}  Be8 {[%clk 0:00:49]} 0-1


[Site "https://www.chess.com"]

[Event "Titled Tuesday Blitz January 10 Early 2023"]
[White "surrenderPLS"]
[Black "Rustemov, Alexander"]
[BlackFideId "4119002"]
[WhiteElo "2533"]
[BlackElo "2525"]
[Result "0-1"]
[Round "05"]
[TimeControl "180+2"]
[Date "2023.01.10"]
[WhiteClock "0:00:01"]
[BlackClock "0:01:07"]

1. e4 {[%clk 0:03:00]}  e6 {[%clk 0:02:57]} 2. d4 {[%clk 0:03:00]}  d5 {[%clk 0:02:57]} 3. Nc3 {[%clk 0:02:57]}  dxe4 {[%clk 0:02:56]} 4. Nxe4 {[%clk 0:02:58]}  Bd7 {[%clk 0:02:57]} 5. Nf3 {[%clk 0:02:56]}  Bc6 {[%clk 0:02:57]} 6. Bd3 {[%clk 0:02:54]}  Nd7 {[%clk 0:02:57]} 7. O-O {[%clk 0:02:51]}  Ngf6 {[%clk 0:02:57]} 8. Qe2 {[%clk 0:02:43]}  Be7 {[%clk 0:02:57]} 9. Bf4 {[%clk 0:02:41]}  O-O {[%clk 0:02:56]} 10. c4 {[%clk 0:02:40]}  Nxe4 {[%clk 0:02:53]} 11. Bxe4 {[%clk 0:02:40]}  Bxe4 {[%clk 0:02:53]} 12. Qxe4 {[%clk 0:02:41]}  c6 {[%clk 0:02:53]} 13. Rad1 {[%clk 0:02:37]}  Re8 {[%clk 0:02:52]} 14. Rfe1 {[%clk 0:02:35]}  Qa5 {[%clk 0:02:50]} 15. Qc2 {[%clk 0:02:25]}  Rad8 {[%clk 0:02:41]} 16. d5 {[%clk 0:01:36]}  cxd5 {[%clk 0:02:32]} 17. cxd5 {[%clk 0:01:35]}  Rc8 {[%clk 0:02:29]} 18. Qd2 {[%clk 0:01:32]}  Bb4 {[%clk 0:02:27]} 19. Qd3 {[%clk 0:01:22]}  Nc5 {[%clk 0:02:21]} 20. Qb1 {[%clk 0:00:37]}  Bxe1 {[%clk 0:02:20]} 21. Rxe1 {[%clk 0:00:31]}  Qb4 {[%clk 0:01:44]} 22. Ng5 {[%clk 0:00:14]}  g6 {[%clk 0:01:37]} 23. Bd6 {[%clk 0:00:12]}  exd5 {[%clk 0:01:34]} 24. Rc1 {[%clk 0:00:04]}  Qg4 {[%clk 0:01:21]} 25. Nf3 {[%clk 0:00:01]}  Qe4 {[%clk 0:01:07]} 0-1


[Site "https://www.chess.com"]

[Event "Titled Tuesday Blitz January 10 Early 2023"]
[White "Tomaszewski, Kacper"]
[Black "Yuan, Qingyu"]
[WhiteFideId "1127373"]
[BlackFideId "8609772"]
[WhiteElo "2313"]
[BlackElo "2373"]
[Result "0-1"]
[Round "05"]
[TimeControl "180+2"]
[Date "2023.01.10"]
[WhiteClock "0:00:01"]
[BlackClock "0:00:05"]

1. e4 {[%clk 0:03:00]}  c6 {[%clk 0:02:59]} 2. Nf3 {[%clk 0:02:54]}  d5 {[%clk 0:02:59]} 3. exd5 {[%clk 0:02:55]}  cxd5 {[%clk 0:02:59]} 4. d4 {[%clk 0:02:56]}  Nc6 {[%clk 0:02:59]} 5. c3 {[%clk 0:02:56]}  Nf6 {[%clk 0:02:53]} 6. Bf4 {[%clk 0:02:56]}  Bf5 {[%clk 0:02:51]} 7. Qb3 {[%clk 0:02:55]}  Qc8 {[%clk 0:02:49]} 8. Nbd2 {[%clk 0:02:50]}  e6 {[%clk 0:02:48]} 9. Be2 {[%clk 0:02:43]}  Be7 {[%clk 0:02:48]} 10. O-O {[%clk 0:02:43]}  O-O {[%clk 0:02:48]} 11. Rfe1 {[%clk 0:02:43]}  a6 {[%clk 0:02:44]} 12. Ne5 {[%clk 0:02:42]}  Nxe5 {[%clk 0:02:43]} 13. Bxe5 {[%clk 0:02:42]}  Qd7 {[%clk 0:02:23]} 14. a4 {[%clk 0:02:40]}  Rfc8 {[%clk 0:02:22]} 15. Nf3 {[%clk 0:02:37]}  Ne4 {[%clk 0:02:21]} 16. a5 {[%clk 0:02:26]}  h6 {[%clk 0:02:14]} 17. h3 {[%clk 0:02:19]}  Rc6 {[%clk 0:02:11]} 18. Bh2 {[%clk 0:02:17]}  f6 {[%clk 0:02:08]} 19. Bf1 {[%clk 0:01:45]}  Rac8 {[%clk 0:02:06]} 20. Qa4 {[%clk 0:01:15]}  Qd8 {[%clk 0:02:00]} 21. Nh4 {[%clk 0:01:11]}  Bh7 {[%clk 0:02:00]} 22. Qd1 {[%clk 0:01:03]}  Bd6 {[%clk 0:01:49]} 23. Bxd6 {[%clk 0:00:59]}  Qxd6 {[%clk 0:01:50]} 24. Bd3 {[%clk 0:00:57]}  Qf4 {[%clk 0:01:45]} 25. Nf3 {[%clk 0:00:49]}  Bg6 {[%clk 0:01:43]} 26. g3 {[%clk 0:00:45]}  Qd6 {[%clk 0:01:33]} 27. Nh4 {[%clk 0:00:42]}  Bh7 {[%clk 0:01:32]} 28. Bxe4 {[%clk 0:00:35]}  Bxe4 {[%clk 0:01:28]} 29. Qg4 {[%clk 0:00:33]}  g5 {[%clk 0:01:11]} 30. f3 {[%clk 0:00:32]}  Bh7 {[%clk 0:01:07]} 31. Kh2 {[%clk 0:00:21]}  f5 {[%clk 0:00:51]} 32. Qh5 {[%clk 0:00:21]}  gxh4 {[%clk 0:00:51]} 33. Rg1 {[%clk 0:00:21]}  R6c7 {[%clk 0:00:38]} 34. f4 {[%clk 0:00:21]}  Kh8 {[%clk 0:00:29]} 35. Qxh6 {[%clk 0:00:20]}  Qf8 {[%clk 0:00:19]} 36. Qxh4 {[%clk 0:00:20]}  Rg7 {[%clk 0:00:17]} 37. Rae1 {[%clk 0:00:20]}  Rg6 {[%clk 0:00:17]} 38. Re5 {[%clk 0:00:19]}  Rc7 {[%clk 0:00:16]} 39. Rge1 {[%clk 0:00:19]}  Rh6 {[%clk 0:00:14]} 40. Qg5 {[%clk 0:00:18]}  Rg6 {[%clk 0:00:14]} 41. Qh5 {[%clk 0:00:17]}  Re7 {[%clk 0:00:11]} 42. Qe2 {[%clk 0:00:13]}  Bg8 {[%clk 0:00:04]} 43. Rxd5 {[%clk 0:00:13]}  Reg7 {[%clk 0:00:04]} 44. Rc5 {[%clk 0:00:08]}  Rxg3 {[%clk 0:00:03]} 45. b4 {[%clk 0:00:06]}  Qf7 {[%clk 0:00:03]} 46. Rc8 {[%clk 0:00:03]}  Qg6 {[%clk 0:00:04]} 47. Kh1 {[%clk 0:00:02]}  Rxh3+ {[%clk 0:00:04]} 48. Qh2 {[%clk 0:00:01]}  Qg2# {[%clk 0:00:05]} 0-1


[Site "https://www.chess.com"]

[Event "Titled Tuesday Blitz January 10 Early 2023"]
[White "Tanenbaum, Zachary"]
[Black "Ibadov, Dashgyn"]
[WhiteFideId "2060850"]
[BlackFideId "24107514"]
[WhiteElo "2261"]
[BlackElo "2391"]
[Result "1/2-1/2"]
[Round "05"]
[TimeControl "180+2"]
[Date "2023.01.10"]
[WhiteClock "0:00:06"]
[BlackClock "0:00:07"]

1. e4 {[%clk 0:03:00]}  e5 {[%clk 0:02:59]} 2. Nf3 {[%clk 0:03:00]}  Nc6 {[%clk 0:03:00]} 3. Bc4 {[%clk 0:03:00]}  Bc5 {[%clk 0:02:59]} 4. c3 {[%clk 0:03:00]}  Nf6 {[%clk 0:03:00]} 5. d4 {[%clk 0:03:00]}  exd4 {[%clk 0:03:00]} 6. b4 {[%clk 0:03:00]}  Be7 {[%clk 0:03:00]} 7. b5 {[%clk 0:03:00]}  Na5 {[%clk 0:02:58]} 8. Bd3 {[%clk 0:02:59]}  d5 {[%clk 0:02:52]} 9. e5 {[%clk 0:02:57]}  Ne4 {[%clk 0:02:51]} 10. cxd4 {[%clk 0:02:58]}  O-O {[%clk 0:02:31]} 11. O-O {[%clk 0:02:57]}  Bf5 {[%clk 0:02:27]} 12. Qe2 {[%clk 0:01:41]}  c5 {[%clk 0:02:16]} 13. dxc5 {[%clk 0:01:28]}  Bxc5 {[%clk 0:02:15]} 14. Be3 {[%clk 0:01:29]}  b6 {[%clk 0:02:10]} 15. Nd4 {[%clk 0:01:25]}  Bg6 {[%clk 0:02:09]} 16. f4 {[%clk 0:01:19]}  Qd7 {[%clk 0:01:48]} 17. Qf3 {[%clk 0:01:10]}  f5 {[%clk 0:01:38]} 18. Qe2 {[%clk 0:00:49]}  Rac8 {[%clk 0:01:33]} 19. Nd2 {[%clk 0:00:46]}  Nb7 {[%clk 0:01:28]} 20. N2b3 {[%clk 0:00:43]}  Nd8 {[%clk 0:01:27]} 21. Rfd1 {[%clk 0:00:40]}  Ne6 {[%clk 0:01:26]} 22. Nxc5 {[%clk 0:00:24]}  bxc5 {[%clk 0:01:23]} 23. Nc6 {[%clk 0:00:23]}  Nc3 {[%clk 0:01:21]} 24. Qf3 {[%clk 0:00:21]}  Nxd1 {[%clk 0:01:20]} 25. Rxd1 {[%clk 0:00:22]}  d4 {[%clk 0:00:54]} 26. Bc4 {[%clk 0:00:22]}  Bf7 {[%clk 0:00:52]} 27. Bf2 {[%clk 0:00:20]}  Kh8 {[%clk 0:00:48]} 28. a4 {[%clk 0:00:19]}  Ng5 {[%clk 0:00:44]} 29. Qb3 {[%clk 0:00:16]}  Bxc4 {[%clk 0:00:44]} 30. Qxc4 {[%clk 0:00:16]}  Ne4 {[%clk 0:00:37]} 31. a5 {[%clk 0:00:15]}  a6 {[%clk 0:00:30]} 32. e6 {[%clk 0:00:13]}  Qd6 {[%clk 0:00:30]} 33. Ne5 {[%clk 0:00:12]}  axb5 {[%clk 0:00:26]} 34. Qxb5 {[%clk 0:00:09]}  Qxe6 {[%clk 0:00:25]} 35. Qc4 {[%clk 0:00:05]}  Qxc4 {[%clk 0:00:16]} 36. Nxc4 {[%clk 0:00:06]}  Rb8 {[%clk 0:00:15]} 37. Bh4 {[%clk 0:00:05]}  Rb4 {[%clk 0:00:12]} 38. Nb6 {[%clk 0:00:05]}  Rb5 {[%clk 0:00:10]} 39. Nc4 {[%clk 0:00:04]}  Ra8 {[%clk 0:00:08]} 40. h3 {[%clk 0:00:04]}  h6 {[%clk 0:00:08]} 41. g4 {[%clk 0:00:04]}  Rb4 {[%clk 0:00:08]} 42. Ne5 {[%clk 0:00:03]}  Rxa5 {[%clk 0:00:08]} 43. Nc6 {[%clk 0:00:04]}  Rab5 {[%clk 0:00:08]} 44. Nxb4 {[%clk 0:00:03]}  Rxb4 {[%clk 0:00:09]} 45. gxf5 {[%clk 0:00:04]}  Rb2 {[%clk 0:00:05]} 46. Re1 {[%clk 0:00:04]}  Nf6 {[%clk 0:00:03]} 47. Re6 {[%clk 0:00:03]}  d3 {[%clk 0:00:03]} 48. Bxf6 {[%clk 0:00:03]}  Rb1+ {[%clk 0:00:03]} 49. Kf2 {[%clk 0:00:03]}  gxf6 {[%clk 0:00:04]} 50. Rd6 {[%clk 0:00:02]}  c4 {[%clk 0:00:04]} 51. Ke3 {[%clk 0:00:03]}  Re1+ {[%clk 0:00:04]} 52. Kd2 {[%clk 0:00:02]}  Re2+ {[%clk 0:00:04]} 53. Kd1 {[%clk 0:00:02]}  Kg7 {[%clk 0:00:04]} 54. Rd7+ {[%clk 0:00:02]}  Kf8 {[%clk 0:00:03]} 55. Rc7 {[%clk 0:00:03]}  Rc2 {[%clk 0:00:04]} 56. Rh7 {[%clk 0:00:03]}  c3 {[%clk 0:00:03]} 57. Rd7 {[%clk 0:00:03]}  Rd2+ {[%clk 0:00:03]} 58. Kc1 {[%clk 0:00:03]}  Ke8 {[%clk 0:00:04]} 59. Rc7 {[%clk 0:00:03]}  Rc2+ {[%clk 0:00:04]} 60. Kd1 {[%clk 0:00:03]}  Kd8 {[%clk 0:00:05]} 61. Rc4 {[%clk 0:00:04]}  Rd2+ {[%clk 0:00:03]} 62. Kc1 {[%clk 0:00:03]}  Rc2+ {[%clk 0:00:03]} 63. Kd1 {[%clk 0:00:03]}  Ke7 {[%clk 0:00:04]} 64. Re4+ {[%clk 0:00:03]}  Kf7 {[%clk 0:00:01]} 65. Rd4 {[%clk 0:00:04]}  Rd2+ {[%clk 0:00:02]} 66. Kc1 {[%clk 0:00:05]}  h5 {[%clk 0:00:02]} 67. Rc4 {[%clk 0:00:05]}  Rc2+ {[%clk 0:00:02]} 68. Kd1 {[%clk 0:00:05]}  h4 {[%clk 0:00:03]} 69. Rc7+ {[%clk 0:00:05]}  Ke8 {[%clk 0:00:03]} 70. Rc4 {[%clk 0:00:06]}  Ke7 {[%clk 0:00:03]} 71. Re4+ {[%clk 0:00:05]}  Kf7 {[%clk 0:00:04]} 72. Rd4 {[%clk 0:00:06]}  Rd2+ {[%clk 0:00:03]} 73. Kc1 {[%clk 0:00:07]}  Ke7 {[%clk 0:00:03]} 74. Rc4 {[%clk 0:00:06]}  Rc2+ {[%clk 0:00:03]} 75. Kd1 {[%clk 0:00:07]}  Kd6 {[%clk 0:00:03]} 76. Rd4+ {[%clk 0:00:07]}  Kc5 {[%clk 0:00:04]} 77. Rxd3 {[%clk 0:00:08]}  Rd2+ {[%clk 0:00:04]} 78. Rxd2 {[%clk 0:00:08]}  cxd2 {[%clk 0:00:05]} 79. Kxd2 {[%clk 0:00:09]}  Kd4 {[%clk 0:00:06]} 80. Ke2 {[%clk 0:00:07]}  Ke4 {[%clk 0:00:07]} 81. Kf2 {[%clk 0:00:07]}  Kxf4 {[%clk 0:00:08]} 82. Ke2 {[%clk 0:00:07]}  Kxf5 {[%clk 0:00:08]} 83. Kf3 {[%clk 0:00:07]}  Ke5 {[%clk 0:00:06]} 84. Kg4 {[%clk 0:00:08]}  f5+ {[%clk 0:00:06]} 85. Kxh4 {[%clk 0:00:08]}  Ke4 {[%clk 0:00:05]} 86. Kg3 {[%clk 0:00:07]}  Ke3 {[%clk 0:00:06]} 87. Kg2 {[%clk 0:00:07]}  Ke2 {[%clk 0:00:06]} 88. Kg3 {[%clk 0:00:07]}  Ke3 {[%clk 0:00:07]} 89. Kg2 {[%clk 0:00:07]}  Ke2 {[%clk 0:00:07]} 90. Kg3 {[%clk 0:00:06]}  Ke3 {[%clk 0:00:07]} 1/2-1/2


[Site "https://www.chess.com"]

[Event "Titled Tuesday Blitz January 10 Early 2023"]
[White "Kuznetsova, Olga"]
[Black "Sai Krishna G V"]
[WhiteFideId "4191323"]
[BlackFideId "5028280"]
[WhiteElo "2142"]
[BlackElo "2384"]
[Result "1/2-1/2"]
[Round "05"]
[TimeControl "180+2"]
[Date "2023.01.10"]
[WhiteClock "0:00:22"]
[BlackClock "0:00:19"]

1. d4 {[%clk 0:03:00]}  Nf6 {[%clk 0:02:59]} 2. Nd2 {[%clk 0:02:58]}  c5 {[%clk 0:02:58]} 3. dxc5 {[%clk 0:02:57]}  Qa5 {[%clk 0:02:58]} 4. Nf3 {[%clk 0:02:52]}  g6 {[%clk 0:02:57]} 5. a3 {[%clk 0:02:49]}  Qxc5 {[%clk 0:02:54]} 6. e4 {[%clk 0:02:45]}  Bg7 {[%clk 0:02:54]} 7. Bd3 {[%clk 0:02:44]}  O-O {[%clk 0:02:53]} 8. O-O {[%clk 0:02:44]}  d5 {[%clk 0:02:51]} 9. e5 {[%clk 0:02:41]}  Ng4 {[%clk 0:02:50]} 10. Qe2 {[%clk 0:02:32]}  Nc6 {[%clk 0:02:49]} 11. Nb3 {[%clk 0:02:32]}  Qb6 {[%clk 0:02:47]} 12. Bf4 {[%clk 0:02:31]}  Qc7 {[%clk 0:02:38]} 13. Rfe1 {[%clk 0:02:29]}  f6 {[%clk 0:02:25]} 14. exf6 {[%clk 0:02:17]}  Qxf4 {[%clk 0:02:26]} 15. fxg7 {[%clk 0:02:17]}  Kxg7 {[%clk 0:02:25]} 16. h3 {[%clk 0:02:09]}  Nh6 {[%clk 0:02:19]} 17. Ne5 {[%clk 0:01:50]}  e6 {[%clk 0:02:13]} 18. Nc5 {[%clk 0:01:40]}  Nd4 {[%clk 0:02:03]} 19. Qe3 {[%clk 0:01:38]}  Qxe3 {[%clk 0:01:37]} 20. fxe3 {[%clk 0:01:24]}  Nc6 {[%clk 0:01:35]} 21. Nxc6 {[%clk 0:01:18]}  bxc6 {[%clk 0:01:36]} 22. e4 {[%clk 0:01:17]}  d4 {[%clk 0:01:26]} 23. Rf1 {[%clk 0:01:10]}  e5 {[%clk 0:01:23]} 24. Rxf8 {[%clk 0:01:08]}  Kxf8 {[%clk 0:01:24]} 25. Rf1+ {[%clk 0:01:07]}  Ke7 {[%clk 0:01:25]} 26. Bc4 {[%clk 0:01:04]}  Bd7 {[%clk 0:01:22]} 27. g4 {[%clk 0:01:01]}  Kd6 {[%clk 0:01:00]} 28. Nxd7 {[%clk 0:00:58]}  Kxd7 {[%clk 0:01:01]} 29. g5 {[%clk 0:00:58]}  Ng8 {[%clk 0:01:00]} 30. Rf7+ {[%clk 0:00:53]}  Kd6 {[%clk 0:01:01]} 31. Rxh7 {[%clk 0:00:51]}  Ne7 {[%clk 0:00:59]} 32. h4 {[%clk 0:00:49]}  a5 {[%clk 0:00:59]} 33. a4 {[%clk 0:00:47]}  Rf8 {[%clk 0:00:52]} 34. Kg2 {[%clk 0:00:39]}  Rf4 {[%clk 0:00:49]} 35. Bd3 {[%clk 0:00:38]}  c5 {[%clk 0:00:48]} 36. b3 {[%clk 0:00:38]}  Rg4+ {[%clk 0:00:46]} 37. Kh3 {[%clk 0:00:37]}  Rg1 {[%clk 0:00:46]} 38. Kh2 {[%clk 0:00:36]}  Rd1 {[%clk 0:00:31]} 39. Rh8 {[%clk 0:00:35]}  Nc6 {[%clk 0:00:29]} 40. Rg8 {[%clk 0:00:35]}  Nb4 {[%clk 0:00:28]} 41. Rxg6+ {[%clk 0:00:34]}  Ke7 {[%clk 0:00:29]} 42. h5 {[%clk 0:00:35]}  Rd2+ {[%clk 0:00:25]} 43. Kg1 {[%clk 0:00:33]}  Nxc2 {[%clk 0:00:23]} 44. h6 {[%clk 0:00:27]}  Ne1 {[%clk 0:00:20]} 45. Be2 {[%clk 0:00:20]}  Rxe2 {[%clk 0:00:18]} 46. h7 {[%clk 0:00:21]}  d3 {[%clk 0:00:17]} 47. h8=Q {[%clk 0:00:20]}  Nf3+ {[%clk 0:00:17]} 48. Kf1 {[%clk 0:00:21]}  Nd2+ {[%clk 0:00:18]} 49. Kg1 {[%clk 0:00:21]}  Nf3+ {[%clk 0:00:18]} 50. Kf1 {[%clk 0:00:22]}  Nd2+ {[%clk 0:00:19]} 51. Kg1 {[%clk 0:00:22]}  Nf3+ {[%clk 0:00:19]} 1/2-1/2


[Site "https://www.chess.com"]

[Event "Titled Tuesday Blitz January 10 Early 2023"]
[White "Shuvalov, Evgenij"]
[Black "Papasimakopoulos, Alexandros"]
[WhiteFideId "4187237"]
[BlackFideId "4244125"]
[WhiteElo "2038"]
[BlackElo "2401"]
[Result "0-1"]
[Round "05"]
[TimeControl "180+2"]
[Date "2023.01.10"]
[WhiteClock "0:00:02"]
[BlackClock "0:00:20"]

1. d4 {[%clk 0:02:55]}  e6 {[%clk 0:02:56]} 2. c4 {[%clk 0:02:55]}  Nf6 {[%clk 0:02:55]} 3. Nf3 {[%clk 0:02:54]}  Bb4+ {[%clk 0:02:53]} 4. Nbd2 {[%clk 0:02:54]}  b6 {[%clk 0:02:53]} 5. g3 {[%clk 0:02:54]}  Bb7 {[%clk 0:02:51]} 6. Bg2 {[%clk 0:02:54]}  O-O {[%clk 0:02:50]} 7. O-O {[%clk 0:02:54]}  Bxd2 {[%clk 0:02:50]} 8. Qxd2 {[%clk 0:02:52]}  d6 {[%clk 0:02:49]} 9. b3 {[%clk 0:02:51]}  Nbd7 {[%clk 0:02:49]} 10. Bb2 {[%clk 0:02:51]}  Qe7 {[%clk 0:02:48]} 11. Rad1 {[%clk 0:02:47]}  a5 {[%clk 0:02:48]} 12. a3 {[%clk 0:02:44]}  h6 {[%clk 0:02:47]} 13. Rfe1 {[%clk 0:02:44]}  Rfe8 {[%clk 0:02:44]} 14. Bh3 {[%clk 0:02:40]}  Ne4 {[%clk 0:02:32]} 15. Qc2 {[%clk 0:02:38]}  f5 {[%clk 0:02:32]} 16. Nh4 {[%clk 0:02:35]}  g5 {[%clk 0:02:28]} 17. Nxf5 {[%clk 0:02:09]}  exf5 {[%clk 0:02:27]} 18. Bxf5 {[%clk 0:02:10]}  Rf8 {[%clk 0:02:15]} 19. g4 {[%clk 0:02:02]}  d5 {[%clk 0:02:10]} 20. f3 {[%clk 0:02:00]}  Nd6 {[%clk 0:02:04]} 21. cxd5 {[%clk 0:01:53]}  Nxf5 {[%clk 0:01:59]} 22. gxf5 {[%clk 0:01:54]}  Nf6 {[%clk 0:01:52]} 23. e4 {[%clk 0:01:52]}  Rae8 {[%clk 0:01:46]} 24. Rc1 {[%clk 0:01:50]}  Rf7 {[%clk 0:01:42]} 25. Re3 {[%clk 0:01:33]}  Nxd5 {[%clk 0:01:40]} 26. Rd3 {[%clk 0:01:27]}  Nf4 {[%clk 0:01:35]} 27. Rc3 {[%clk 0:01:27]}  c6 {[%clk 0:01:22]} 28. d5 {[%clk 0:01:16]}  cxd5 {[%clk 0:01:22]} 29. Rc7 {[%clk 0:01:15]}  Qxc7 {[%clk 0:01:13]} 30. Qxc7 {[%clk 0:01:15]}  Rxc7 {[%clk 0:01:13]} 31. Rxc7 {[%clk 0:01:16]}  Ba6 {[%clk 0:01:10]} 32. f6 {[%clk 0:01:02]}  Kf8 {[%clk 0:01:02]} 33. a4 {[%clk 0:00:46]}  Nd3 {[%clk 0:00:47]} 34. Ba3+ {[%clk 0:00:20]}  Nb4 {[%clk 0:00:44]} 35. exd5 {[%clk 0:00:13]}  Rd8 {[%clk 0:00:43]} 36. Bxb4+ {[%clk 0:00:12]}  axb4 {[%clk 0:00:42]} 37. Rc6 {[%clk 0:00:11]}  Rxd5 {[%clk 0:00:37]} 38. Rxb6 {[%clk 0:00:12]}  Be2 {[%clk 0:00:37]} 39. Rxb4 {[%clk 0:00:12]}  Bxf3 {[%clk 0:00:36]} 40. Kf2 {[%clk 0:00:12]}  Bd1 {[%clk 0:00:35]} 41. Rb7 {[%clk 0:00:11]}  Rd3 {[%clk 0:00:35]} 42. a5 {[%clk 0:00:11]}  Rxb3 {[%clk 0:00:32]} 43. Rh7 {[%clk 0:00:09]}  h5 {[%clk 0:00:29]} 44. a6 {[%clk 0:00:09]}  Ra3 {[%clk 0:00:29]} 45. a7 {[%clk 0:00:09]}  Bf3 {[%clk 0:00:29]} 46. h4 {[%clk 0:00:04]}  g4 {[%clk 0:00:25]} 47. Rg7 {[%clk 0:00:02]}  Ra6 {[%clk 0:00:20]} 0-1


[Site "https://www.chess.com"]